[Event "*** Titled Tuesday Blitz"]
[Site "Chess.com"]
[Date "2021.03.09"]
[Round "4"]
[White "FontVella8"]
[Black "Harry_Rakkel"]
[Result "0-1"]
[WhiteElo "2486"]
[BlackElo "2643"]
[TimeControl "180+1"]
[EndTime "10:41:58 PST"]
[Termination "Harry_Rakkel won on time"]

1. e4 {[%clk 0:03:00.9]} 1... c5 {[%clk 0:02:59.2]} 2. Nf3 {[%clk 0:03:01]} 2...
e6 {[%clk 0:02:59.2]} 3. d4 {[%clk 0:03:01.4]} 3... cxd4 {[%clk 0:03:00.1]} 4.
Nxd4 {[%clk 0:03:02.3]} 4... Nc6 {[%clk 0:02:59.9]} 5. Nc3 {[%clk 0:03:02.4]}
5... Qc7 {[%clk 0:02:59.6]} 6. Be3 {[%clk 0:03:02.6]} 6... a6 {[%clk 0:02:59.2]}
7. a3 {[%clk 0:03:03.1]} 7... Na5 {[%clk 0:02:49.9]} 8. f4 {[%clk 0:02:50.1]}
8... b5 {[%clk 0:02:44.5]} 9. Qf3 {[%clk 0:02:47.1]} 9... Bb7 {[%clk 0:02:43.6]}
10. Rd1 {[%clk 0:02:03.7]} 10... Rc8 {[%clk 0:02:20.6]} 11. f5 {[%clk
0:01:54.6]} 11... Nf6 {[%clk 0:02:17.6]} 12. g4 {[%clk 0:01:30]} 12... Bxa3
{[%clk 0:01:56.9]} 13. Ncxb5 {[%clk 0:01:20.5]} 13... axb5 {[%clk 0:01:54.4]}
14. Nxb5 {[%clk 0:01:20.7]} 14... Bb4+ {[%clk 0:01:51.3]} 15. c3 {[%clk
0:01:16.9]} 15... Qb8 {[%clk 0:01:30.9]} 16. cxb4 {[%clk 0:00:49.6]} 16... Bxe4
{[%clk 0:01:28.9]} 17. Qf4 {[%clk 0:00:43.1]} 17... O-O {[%clk 0:01:13.6]} 18.
bxa5 {[%clk 0:00:35]} 18... Bxh1 {[%clk 0:01:07.3]} 19. Qxb8 {[%clk 0:00:16.3]}
19... Rxb8 {[%clk 0:01:06.4]} 20. a6 {[%clk 0:00:08.5]} 20... Nxg4 {[%clk
0:01:02.5]} 21. Bd4 {[%clk 0:00:07.6]} 21... Nxh2 {[%clk 0:00:58.8]} 22. Kf2
{[%clk 0:00:04.6]} 22... Nxf1 {[%clk 0:00:57.8]} 23. Nd6 {[%clk 0:00:02]} 23...
Ra8 {[%clk 0:00:31.2]} 24. Kxf1 {[%clk 0:00:02.4]} 24... Rxa6 {[%clk 0:00:30.3]}
25. Bc5 {[%clk 0:00:02]} 25... Rb8 {[%clk 0:00:29]} 26. b4 {[%clk 0:00:02.3]}
26... Bc6 {[%clk 0:00:27.8]} 27. Kf2 {[%clk 0:00:02.5]} 27... exf5 {[%clk
0:00:27.4]} 28. Nxf5 {[%clk 0:00:02.2]} 28... Ra2+ {[%clk 0:00:27.1]} 29. Ke3
{[%clk 0:00:01.9]} 29... Re8+ {[%clk 0:00:25.8]} 30. Kd4 {[%clk 0:00:01.4]}
30... f6 {[%clk 0:00:25.1]} 31. Nd6 {[%clk 0:00:01.2]} 31... Re5 {[%clk
0:00:23.9]} 32. Rg1 {[%clk 0:00:02.1]} 32... h5 {[%clk 0:00:22.5]} 33. Nc4
{[%clk 0:00:02.4]} 33... Rc2 {[%clk 0:00:20.6]} 34. Nxe5 {[%clk 0:00:02.2]}
34... fxe5+ {[%clk 0:00:20]} 35. Kxe5 {[%clk 0:00:03.1]} 35... Rb2 {[%clk
0:00:18.6]} 36. Kd6 {[%clk 0:00:03.5]} 36... Kh7 {[%clk 0:00:18]} 37. Bd4 {[%clk
0:00:02.9]} 37... Rd2 {[%clk 0:00:18.1]} 38. Rxg7+ {[%clk 0:00:01.8]} 38... Kh6
{[%clk 0:00:18.1]} 39. b5 {[%clk 0:00:01.7]} 39... Rxd4+ {[%clk 0:00:18]} 40.
Kc5 {[%clk 0:00:01.5]} 40... Kxg7 {[%clk 0:00:18.2]} 41. bxc6 {[%clk 0:00:01.3]}
41... dxc6 {[%clk 0:00:18.5]} 0-1

[Event "*** Titled Tuesday Blitz"]
[Site "Chess.com"]
[Date "2021.03.09"]
[Round "4"]
[White "Hikaru"]
[Black "erdni1993"]
[Result "1-0"]
[WhiteElo "3165"]
[BlackElo "2515"]
[TimeControl "180+1"]
[EndTime "10:42:00 PST"]
[Termination "Hikaru won by resignation"]

1. Nf3 {[%clk 0:03:00.9]} 1... c5 {[%clk 0:03:00]} 2. e4 {[%clk 0:03:00.2]} 2...
e6 {[%clk 0:02:59.9]} 3. c3 {[%clk 0:02:59.9]} 3... Nf6 {[%clk 0:02:59.5]} 4. e5
{[%clk 0:02:59.8]} 4... Nd5 {[%clk 0:02:59.9]} 5. d4 {[%clk 0:03:00.7]} 5...
cxd4 {[%clk 0:03:00.3]} 6. cxd4 {[%clk 0:03:01.6]} 6... d6 {[%clk 0:03:00.9]} 7.
Bd3 {[%clk 0:03:02.2]} 7... Bd7 {[%clk 0:02:59.6]} 8. O-O {[%clk 0:03:02.2]}
8... Bc6 {[%clk 0:03:00.1]} 9. Nbd2 {[%clk 0:03:00.5]} 9... Nd7 {[%clk
0:02:59.8]} 10. Ne4 {[%clk 0:03:00]} 10... Qc7 {[%clk 0:02:56]} 11. exd6 {[%clk
0:02:57]} 11... Bxd6 {[%clk 0:02:55.4]} 12. Bd2 {[%clk 0:02:56.4]} 12... h6
{[%clk 0:02:50.5]} 13. Nxd6+ {[%clk 0:02:56.1]} 13... Qxd6 {[%clk 0:02:50.5]}
14. Rc1 {[%clk 0:02:56.8]} 14... O-O {[%clk 0:02:43.5]} 15. Re1 {[%clk
0:02:57.2]} 15... Rac8 {[%clk 0:02:40.4]} 16. Ne5 {[%clk 0:02:50.7]} 16... Nxe5
{[%clk 0:02:37.8]} 17. dxe5 {[%clk 0:02:50.7]} 17... Qd7 {[%clk 0:02:24.7]} 18.
Qg4 {[%clk 0:02:39.9]} 18... f5 {[%clk 0:02:12.4]} 19. exf6 {[%clk 0:02:40.8]}
19... Nxf6 {[%clk 0:02:12.2]} 20. Qxe6+ {[%clk 0:02:40.1]} 20... Qxe6 {[%clk
0:02:09.6]} 21. Rxe6 {[%clk 0:02:41]} 21... Bd5 {[%clk 0:01:48.1]} 22. Ree1
{[%clk 0:02:36.3]} 22... Bxa2 {[%clk 0:01:41.5]} 23. Be3 {[%clk 0:02:36.7]}
23... a6 {[%clk 0:01:34.4]} 24. f3 {[%clk 0:02:29.4]} 24... Bf7 {[%clk
0:01:32.3]} 25. Bf2 {[%clk 0:02:26.5]} 25... Rxc1 {[%clk 0:01:27.7]} 26. Rxc1
{[%clk 0:02:26.2]} 26... Rd8 {[%clk 0:01:28.4]} 27. Bf1 {[%clk 0:02:23.7]} 27...
Bd5 {[%clk 0:01:24.1]} 28. Be3 {[%clk 0:02:16.7]} 28... Rd7 {[%clk 0:01:21.2]}
29. Kf2 {[%clk 0:02:15.6]} 29... Kf7 {[%clk 0:01:20.8]} 30. h4 {[%clk
0:02:12.9]} 30... h5 {[%clk 0:01:17.6]} 31. Bg5 {[%clk 0:02:11.6]} 31... Be6
{[%clk 0:01:15.1]} 32. Rc3 {[%clk 0:02:06.2]} 32... g6 {[%clk 0:01:12.7]} 33.
Be2 {[%clk 0:02:05.1]} 33... Nd5 {[%clk 0:01:11.8]} 34. Rc8 {[%clk 0:02:04.1]}
34... Nf6 {[%clk 0:01:03.8]} 35. Rb8 {[%clk 0:02:01.1]} 35... Bd5 {[%clk
0:01:01.8]} 36. Ke3 {[%clk 0:01:52.6]} 36... Re7+ {[%clk 0:00:58.6]} 37. Kd2
{[%clk 0:01:52.4]} 37... Rd7 {[%clk 0:00:59]} 38. Kc3 {[%clk 0:01:48.4]} 38...
Be6 {[%clk 0:00:57.6]} 39. Kc2 {[%clk 0:01:44.1]} 39... Nd5 {[%clk 0:00:57.1]}
40. Kc1 {[%clk 0:01:34.9]} 40... Nb4 {[%clk 0:00:52.3]} 41. Bd2 {[%clk 0:01:31]}
41... Rc7+ {[%clk 0:00:46.3]} 42. Kd1 {[%clk 0:01:30.3]} 42... Bb3+ {[%clk
0:00:43.5]} 43. Ke1 {[%clk 0:01:30.3]} 43... Nc6 {[%clk 0:00:43.4]} 44. Rh8
{[%clk 0:01:29]} 44... Rd7 {[%clk 0:00:33.4]} 45. Bc3 {[%clk 0:01:25.7]} 45...
Ke6 {[%clk 0:00:27]} 46. g4 {[%clk 0:01:18.1]} 46... hxg4 {[%clk 0:00:25.5]} 47.
fxg4 {[%clk 0:01:19]} 47... Ne7 {[%clk 0:00:24.1]} 48. h5 {[%clk 0:01:18.1]}
48... gxh5 {[%clk 0:00:23.6]} 49. gxh5 {[%clk 0:01:19]} 49... Bc2 {[%clk
0:00:23.1]} 50. h6 {[%clk 0:01:18.4]} 50... Ng6 {[%clk 0:00:21.3]} 51. Bg4+
{[%clk 0:01:09.9]} 51... Kd6 {[%clk 0:00:14.7]} 52. Bxd7 {[%clk 0:01:09.7]}
52... Nxh8 {[%clk 0:00:14.3]} 53. Be8 {[%clk 0:01:07.8]} 53... Ke7 {[%clk
0:00:11.5]} 54. Bh5 {[%clk 0:01:02.1]} 54... Nf7 {[%clk 0:00:11.8]} 55. Bg7
{[%clk 0:01:02.7]} 55... Nxh6 {[%clk 0:00:11]} 56. Bxh6 {[%clk 0:01:02.1]} 56...
Kd6 {[%clk 0:00:11.7]} 57. Kd2 {[%clk 0:01:02.2]} 57... Bf5 {[%clk 0:00:11.3]}
58. Kc3 {[%clk 0:01:01.9]} 58... b5 {[%clk 0:00:11.7]} 59. Kb4 {[%clk
0:01:01.7]} 59... Kc6 {[%clk 0:00:12.1]} 60. Ka5 {[%clk 0:01:01.9]} 60... Bd3
{[%clk 0:00:08.6]} 61. Kxa6 {[%clk 0:00:59.9]} 61... Kc5 {[%clk 0:00:08.5]} 62.
Ka5 {[%clk 0:00:59.7]} 62... Kc4 {[%clk 0:00:09]} 63. Bf7+ {[%clk 0:00:58.7]}
63... Kc5 {[%clk 0:00:09.1]} 64. b4+ {[%clk 0:00:58.6]} 64... Kc6 {[%clk
0:00:08.7]} 65. Be8+ {[%clk 0:00:59.2]} 65... Kb7 {[%clk 0:00:07.8]} 66. Bxb5
{[%clk 0:00:59.7]} 66... Be4 {[%clk 0:00:07.9]} 67. Be2 {[%clk 0:00:59.8]} 1-0

[Event "*** Titled Tuesday Blitz"]
[Site "Chess.com"]
[Date "2021.03.09"]
[Round "4"]
[White "Chernov_Mikhail"]
[Black "Airquake"]
[Result "0-1"]
[WhiteElo "2391"]
[BlackElo "2604"]
[TimeControl "180+1"]
[EndTime "10:42:00 PST"]
[Termination "Airquake won on time"]

1. e4 {[%clk 0:02:38.4]} 1... c5 {[%clk 0:02:59.4]} 2. Nf3 {[%clk 0:02:38.1]}
2... d6 {[%clk 0:02:59.9]} 3. d4 {[%clk 0:02:38.4]} 3... cxd4 {[%clk 0:03:00.8]}
4. Nxd4 {[%clk 0:02:39.3]} 4... Nf6 {[%clk 0:03:01]} 5. Nc3 {[%clk 0:02:40]}
5... a6 {[%clk 0:03:01.7]} 6. Bc4 {[%clk 0:02:40.6]} 6... Qc7 {[%clk 0:03:02]}
7. Bb3 {[%clk 0:02:40.8]} 7... b5 {[%clk 0:03:02.4]} 8. Bg5 {[%clk 0:02:34.6]}
8... Bb7 {[%clk 0:03:01.9]} 9. Bxf6 {[%clk 0:02:33]} 9... gxf6 {[%clk
0:03:02.8]} 10. Qd3 {[%clk 0:02:20.4]} 10... Nd7 {[%clk 0:03:02.1]} 11. O-O-O
{[%clk 0:02:15.7]} 11... Nc5 {[%clk 0:03:01]} 12. Qe3 {[%clk 0:02:13.7]} 12...
h5 {[%clk 0:02:59.7]} 13. Kb1 {[%clk 0:02:14]} 13... e6 {[%clk 0:02:58.6]} 14.
f4 {[%clk 0:02:11.5]} 14... b4 {[%clk 0:02:58.2]} 15. Na4 {[%clk 0:01:57.8]}
15... Nxe4 {[%clk 0:02:55]} 16. Rhe1 {[%clk 0:01:50.4]} 16... f5 {[%clk
0:02:51.9]} 17. Nxe6 {[%clk 0:01:24.2]} 17... fxe6 {[%clk 0:02:51.1]} 18. Bxe6
{[%clk 0:01:25.1]} 18... Be7 {[%clk 0:01:33]} 19. Bxf5 {[%clk 0:01:22.2]} 19...
d5 {[%clk 0:01:33.6]} 20. Nb6 {[%clk 0:00:52.1]} 20... Rd8 {[%clk 0:01:21]} 21.
Nxd5 {[%clk 0:00:33]} 21... Bxd5 {[%clk 0:00:52.4]} 22. Bxe4 {[%clk 0:00:33]}
22... Bf7 {[%clk 0:00:53.3]} 23. Rxd8+ {[%clk 0:00:29]} 23... Qxd8 {[%clk
0:00:54.2]} 24. f5 {[%clk 0:00:22.2]} 24... Kf8 {[%clk 0:00:52.9]} 25. f6 {[%clk
0:00:17.9]} 25... Bxf6 {[%clk 0:00:52.6]} 26. Rf1 {[%clk 0:00:18]} 26... Qe7
{[%clk 0:00:47.4]} 27. Qf4 {[%clk 0:00:13.8]} 27... Kg7 {[%clk 0:00:47]} 28. Rf3
{[%clk 0:00:12.1]} 28... h4 {[%clk 0:00:24.1]} 29. Qg4+ {[%clk 0:00:11.7]} 29...
Kf8 {[%clk 0:00:20.3]} 30. Qc8+ {[%clk 0:00:06.3]} 30... Be8 {[%clk 0:00:17]}
31. Qf5 {[%clk 0:00:05.1]} 31... Kg7 {[%clk 0:00:09.1]} 32. Rf4 {[%clk
0:00:05.1]} 32... Rh5 {[%clk 0:00:07.8]} 33. Rg4+ {[%clk 0:00:04.4]} 33... Kh8
{[%clk 0:00:06.5]} 34. Qf3 {[%clk 0:00:03.4]} 34... Re5 {[%clk 0:00:06.5]} 35.
Rf4 {[%clk 0:00:02.6]} 35... Bg6 {[%clk 0:00:06.4]} 36. Rxf6 {[%clk 0:00:02.3]}
36... Rxe4 {[%clk 0:00:06.9]} 37. Rf8+ {[%clk 0:00:02.5]} 37... Kg7 {[%clk
0:00:07.1]} 38. Rf4 {[%clk 0:00:01.4]} 38... Re1+ {[%clk 0:00:07.2]} 0-1

[Event "*** Titled Tuesday Blitz"]
[Site "Chess.com"]
[Date "2021.03.09"]
[Round "4"]
[White "korkmaz16"]
[Black "vovachesss"]
[Result "1-0"]
[WhiteElo "2442"]
[BlackElo "2687"]
[TimeControl "180+1"]
[EndTime "10:42:00 PST"]
[Termination "korkmaz16 won on time"]

1. e4 {[%clk 0:03:00.9]} 1... e5 {[%clk 0:02:59.1]} 2. Nf3 {[%clk 0:03:00.3]}
2... d5 {[%clk 0:02:59.2]} 3. exd5 {[%clk 0:02:57.1]} 3... e4 {[%clk 0:02:59.6]}
4. Qe2 {[%clk 0:02:56.3]} 4... Nf6 {[%clk 0:03:00.1]} 5. Nc3 {[%clk 0:02:41.3]}
5... Be7 {[%clk 0:03:00.3]} 6. Nxe4 {[%clk 0:02:41]} 6... O-O {[%clk 0:03:00.7]}
7. Nxf6+ {[%clk 0:02:31.6]} 7... Bxf6 {[%clk 0:03:00.9]} 8. Qd1 {[%clk
0:02:24.9]} 8... Qxd5 {[%clk 0:03:00.7]} 9. Be2 {[%clk 0:02:24.9]} 9... c5
{[%clk 0:03:01.2]} 10. O-O {[%clk 0:02:24.5]} 10... Nc6 {[%clk 0:03:01.9]} 11.
d3 {[%clk 0:02:18.4]} 11... b6 {[%clk 0:03:01]} 12. Nd2 {[%clk 0:02:17.7]} 12...
Bb7 {[%clk 0:02:48.7]} 13. Bf3 {[%clk 0:02:16.4]} 13... Qd7 {[%clk 0:02:48.9]}
14. Ne4 {[%clk 0:02:14]} 14... Be7 {[%clk 0:02:49]} 15. Ng3 {[%clk 0:01:54.4]}
15... Rfe8 {[%clk 0:02:48.2]} 16. Bf4 {[%clk 0:01:52.2]} 16... Bf6 {[%clk
0:02:45.7]} 17. Rb1 {[%clk 0:01:45]} 17... Rad8 {[%clk 0:02:44.6]} 18. Be4
{[%clk 0:01:29.9]} 18... g6 {[%clk 0:02:42.9]} 19. a3 {[%clk 0:01:18]} 19... h5
{[%clk 0:02:40.6]} 20. Bf3 {[%clk 0:01:07.4]} 20... h4 {[%clk 0:02:38.1]} 21.
Ne4 {[%clk 0:01:07.6]} 21... Bg7 {[%clk 0:02:38.1]} 22. Bg5 {[%clk 0:01:06.6]}
22... Rc8 {[%clk 0:02:22]} 23. Nf6+ {[%clk 0:01:02.3]} 23... Bxf6 {[%clk
0:02:22.2]} 24. Bxf6 {[%clk 0:01:02.8]} 24... h3 {[%clk 0:02:21.2]} 25. Bg4
{[%clk 0:00:57.8]} 25... Qd5 {[%clk 0:01:19.6]} 26. Bxh3 {[%clk 0:00:55.9]}
26... Nd4 {[%clk 0:01:15.1]} 27. Qg4 {[%clk 0:00:45.9]} 27... Rc6 {[%clk
0:01:05.4]} 28. Qh4 {[%clk 0:00:37.3]} 28... Rxf6 {[%clk 0:00:38.7]} 29. Qxf6
{[%clk 0:00:36.3]} 29... Ne2+ {[%clk 0:00:35.6]} 30. Kh1 {[%clk 0:00:34.6]}
30... Qh5 {[%clk 0:00:36]} 31. f3 {[%clk 0:00:27.1]} 31... Re3 {[%clk
0:00:20.4]} 32. Rbe1 {[%clk 0:00:19.9]} 32... c4 {[%clk 0:00:07.6]} 33. Bg4
{[%clk 0:00:15.9]} 33... Qh6 {[%clk 0:00:05.2]} 34. Bh3 {[%clk 0:00:12.7]} 34...
cxd3 {[%clk 0:00:04]} 35. cxd3 {[%clk 0:00:13.6]} 35... Ba6 {[%clk 0:00:03]} 36.
d4 {[%clk 0:00:06.5]} 36... Bd3 {[%clk 0:00:02]} 37. d5 {[%clk 0:00:06.2]} 37...
Bb5 {[%clk 0:00:02]} 38. d6 {[%clk 0:00:06.5]} 1-0

[Event "*** Titled Tuesday Blitz"]
[Site "Chess.com"]
[Date "2021.03.09"]
[Round "4"]
[White "WPWPWP-2015"]
[Black "tdf98pantani"]
[Result "1-0"]
[WhiteElo "2515"]
[BlackElo "2657"]
[TimeControl "180+1"]
[EndTime "10:42:01 PST"]
[Termination "WPWPWP-2015 won on time"]

1. d4 {[%clk 0:02:50]} 1... d5 {[%clk 0:02:58.1]} 2. c4 {[%clk 0:02:47.1]} 2...
e6 {[%clk 0:02:58.2]} 3. Nf3 {[%clk 0:02:46.5]} 3... Nf6 {[%clk 0:02:58.2]} 4.
Nc3 {[%clk 0:02:45.8]} 4... Be7 {[%clk 0:02:58]} 5. Bf4 {[%clk 0:02:45.2]} 5...
O-O {[%clk 0:02:56.1]} 6. e3 {[%clk 0:02:44.8]} 6... Nbd7 {[%clk 0:02:54.4]} 7.
Rc1 {[%clk 0:02:43.5]} 7... c6 {[%clk 0:02:52.2]} 8. a3 {[%clk 0:02:40.6]} 8...
b6 {[%clk 0:02:37.3]} 9. cxd5 {[%clk 0:02:36.1]} 9... Nxd5 {[%clk 0:02:36.1]}
10. Nxd5 {[%clk 0:02:33.8]} 10... cxd5 {[%clk 0:02:36.3]} 11. Bb5 {[%clk
0:02:30.7]} 11... a6 {[%clk 0:02:31.4]} 12. Bc7 {[%clk 0:02:24.7]} 12... Qe8
{[%clk 0:02:30.7]} 13. Bc6 {[%clk 0:02:23.6]} 13... Ra7 {[%clk 0:02:23.2]} 14.
Bxb6 {[%clk 0:02:23.3]} 14... Nxb6 {[%clk 0:02:20.8]} 15. Bxe8 {[%clk
0:02:22.3]} 15... Rxe8 {[%clk 0:02:21.1]} 16. Ne5 {[%clk 0:02:21.7]} 16... Bf8
{[%clk 0:02:18.6]} 17. O-O {[%clk 0:02:07]} 17... f6 {[%clk 0:02:14.7]} 18. Nc6
{[%clk 0:02:05.9]} 18... Ra8 {[%clk 0:02:07.9]} 19. Na5 {[%clk 0:02:04.8]} 19...
Bd7 {[%clk 0:02:03]} 20. f3 {[%clk 0:01:31.1]} 20... Bb5 {[%clk 0:01:59.4]} 21.
Rf2 {[%clk 0:01:30.8]} 21... e5 {[%clk 0:01:42.8]} 22. Rfc2 {[%clk 0:01:27.6]}
22... e4 {[%clk 0:01:41.5]} 23. Qd2 {[%clk 0:01:18.8]} 23... exf3 {[%clk
0:01:35.7]} 24. gxf3 {[%clk 0:01:18.2]} 24... g6 {[%clk 0:01:23.1]} 25. h4
{[%clk 0:01:08.8]} 25... Re6 {[%clk 0:01:20.4]} 26. Rc7 {[%clk 0:00:51.8]} 26...
Rae8 {[%clk 0:01:19.7]} 27. R1c3 {[%clk 0:00:50.8]} 27... Bd6 {[%clk 0:01:10.2]}
28. Rb7 {[%clk 0:00:48.9]} 28... Na4 {[%clk 0:01:09.4]} 29. Rb3 {[%clk
0:00:44.3]} 29... f5 {[%clk 0:00:49.3]} 30. R7xb5 {[%clk 0:00:37.6]} 30... axb5
{[%clk 0:00:48.6]} 31. Nb7 {[%clk 0:00:37.3]} 31... f4 {[%clk 0:00:19.5]} 32.
Nxd6 {[%clk 0:00:36.5]} 32... Rxd6 {[%clk 0:00:19.7]} 33. exf4 {[%clk
0:00:34.4]} 33... Rde6 {[%clk 0:00:19.8]} 34. Kf2 {[%clk 0:00:32.4]} 34... Nb6
{[%clk 0:00:20.4]} 35. Rxb5 {[%clk 0:00:31.8]} 35... Nc4 {[%clk 0:00:20.7]} 36.
Qc2 {[%clk 0:00:31.6]} 36... Ne3 {[%clk 0:00:18.9]} 37. Qd3 {[%clk 0:00:30.2]}
37... Nf5 {[%clk 0:00:17.1]} 38. Rxd5 {[%clk 0:00:29.7]} 38... Re3 {[%clk
0:00:16.7]} 39. Qd2 {[%clk 0:00:29.3]} 39... Rb3 {[%clk 0:00:08]} 40. Re5 {[%clk
0:00:27]} 40... Reb8 {[%clk 0:00:07.5]} 41. Re2 {[%clk 0:00:26.9]} 41... Kg7
{[%clk 0:00:04.5]} 42. d5 {[%clk 0:00:26.8]} 42... Kh6 {[%clk 0:00:04.9]} 43. d6
{[%clk 0:00:26.5]} 43... Rd8 {[%clk 0:00:05.1]} 44. Re6 {[%clk 0:00:23.5]} 1-0

[Event "*** Titled Tuesday Blitz"]
[Site "Chess.com"]
[Date "2021.03.09"]
[Round "4"]
[White "GM_LOADING"]
[Black "Reader777"]
[Result "1-0"]
[WhiteElo "2550"]
[BlackElo "2795"]
[TimeControl "180+1"]
[EndTime "10:42:02 PST"]
[Termination "GM_LOADING won by resignation"]

1. d4 {[%clk 0:02:58]} 1... Nf6 {[%clk 0:03:00]} 2. Nf3 {[%clk 0:02:53.9]} 2...
e6 {[%clk 0:03:00]} 3. Bg5 {[%clk 0:02:54.1]} 3... d5 {[%clk 0:02:58.4]} 4. Nbd2
{[%clk 0:02:54.2]} 4... h6 {[%clk 0:02:58.5]} 5. Bh4 {[%clk 0:02:53.9]} 5... Be7
{[%clk 0:02:57.2]} 6. e3 {[%clk 0:02:52.5]} 6... b6 {[%clk 0:02:56.1]} 7. Bb5+
{[%clk 0:02:50.2]} 7... c6 {[%clk 0:02:53.1]} 8. Bd3 {[%clk 0:02:50.1]} 8... O-O
{[%clk 0:02:52.8]} 9. O-O {[%clk 0:02:49.7]} 9... Ba6 {[%clk 0:02:52.1]} 10.
Bxa6 {[%clk 0:02:49.1]} 10... Nxa6 {[%clk 0:02:52.7]} 11. Rc1 {[%clk 0:02:48.1]}
11... Nd7 {[%clk 0:02:51.3]} 12. Bg3 {[%clk 0:02:47.5]} 12... c5 {[%clk
0:02:50.1]} 13. c3 {[%clk 0:02:40.5]} 13... Nab8 {[%clk 0:02:49.5]} 14. c4
{[%clk 0:02:35.6]} 14... cxd4 {[%clk 0:02:13.1]} 15. Nxd4 {[%clk 0:02:26.1]}
15... Nc5 {[%clk 0:02:03.1]} 16. Bxb8 {[%clk 0:02:04.5]} 16... Qxb8 {[%clk
0:02:01.6]} 17. cxd5 {[%clk 0:02:04.4]} 17... exd5 {[%clk 0:02:02.2]} 18. Qf3
{[%clk 0:01:59.2]} 18... Bf6 {[%clk 0:01:52]} 19. Qxd5 {[%clk 0:01:48.3]} 19...
Rd8 {[%clk 0:01:50.9]} 20. Qc4 {[%clk 0:01:40.7]} 20... Bxd4 {[%clk 0:01:44.4]}
21. exd4 {[%clk 0:01:37.4]} 21... Ne6 {[%clk 0:01:43.5]} 22. Nf3 {[%clk
0:01:23.1]} 22... Qd6 {[%clk 0:01:21.8]} 23. Rcd1 {[%clk 0:01:07.5]} 23... Rac8
{[%clk 0:01:20.1]} 24. Qa4 {[%clk 0:01:04.1]} 24... Qd5 {[%clk 0:01:09]} 25.
Qxa7 {[%clk 0:00:48.4]} 25... Ra8 {[%clk 0:01:05.1]} 26. Qe7 {[%clk 0:00:43.6]}
26... Rxa2 {[%clk 0:00:54.4]} 27. Rfe1 {[%clk 0:00:35.4]} 27... Rxb2 {[%clk
0:00:45.1]} 28. Re5 {[%clk 0:00:12.5]} 28... Qb3 {[%clk 0:00:25.8]} 29. Rde1
{[%clk 0:00:09.1]} 29... Rf8 {[%clk 0:00:14.1]} 30. d5 {[%clk 0:00:09.3]} 30...
Nf4 {[%clk 0:00:13.8]} 31. Qxf8+ {[%clk 0:00:09.2]} 31... Kh7 {[%clk 0:00:11.6]}
32. Qxf7 {[%clk 0:00:06.1]} 32... Ng6 {[%clk 0:00:10.1]} 33. Qf5 {[%clk
0:00:04.5]} 33... Qc3 {[%clk 0:00:04.4]} 34. Re6 {[%clk 0:00:02.3]} 34... Qxe1+
{[%clk 0:00:04.4]} 35. Rxe1 {[%clk 0:00:01.5]} 35... Rb1 {[%clk 0:00:03.8]} 36.
Ng5+ {[%clk 0:00:02.4]} 36... hxg5 {[%clk 0:00:02.9]} 37. Rxb1 {[%clk
0:00:03.3]} 1-0

[Event "*** Titled Tuesday Blitz"]
[Site "Chess.com"]
[Date "2021.03.09"]
[Round "4"]
[White "ChampStan"]
[Black "Artyom_ChessMate"]
[Result "1/2-1/2"]
[WhiteElo "2028"]
[BlackElo "2548"]
[TimeControl "180+1"]
[EndTime "10:42:03 PST"]
[Termination "Game drawn by repetition"]

1. d4 {[%clk 0:03:00.8]} 1... d5 {[%clk 0:02:59.8]} 2. c4 {[%clk 0:02:59.4]}
2... e6 {[%clk 0:03:00.1]} 3. Nc3 {[%clk 0:02:57.4]} 3... Nf6 {[%clk 0:02:59.6]}
4. cxd5 {[%clk 0:02:56.8]} 4... exd5 {[%clk 0:03:00.5]} 5. Bg5 {[%clk
0:02:55.8]} 5... c6 {[%clk 0:03:00.4]} 6. e3 {[%clk 0:02:55.8]} 6... Qb6 {[%clk
0:02:59.4]} 7. Qc2 {[%clk 0:02:15]} 7... Ne4 {[%clk 0:02:57.9]} 8. Bf4 {[%clk
0:02:01.5]} 8... Bf5 {[%clk 0:02:56]} 9. Bd3 {[%clk 0:02:00.5]} 9... Na6 {[%clk
0:02:55.4]} 10. a3 {[%clk 0:01:56.9]} 10... Qa5 {[%clk 0:02:54.5]} 11. Rc1
{[%clk 0:01:16.1]} 11... Nxc3 {[%clk 0:02:25.3]} 12. Qxc3 {[%clk 0:01:10.6]}
12... Qxc3+ {[%clk 0:02:24.4]} 13. Rxc3 {[%clk 0:01:10.4]} 13... Bxd3 {[%clk
0:02:25.3]} 14. Rxd3 {[%clk 0:01:10.8]} 14... Kd7 {[%clk 0:02:17.6]} 15. Nf3
{[%clk 0:01:10.4]} 15... f6 {[%clk 0:02:18.1]} 16. Ke2 {[%clk 0:01:10.3]} 16...
Bd6 {[%clk 0:02:17.9]} 17. Bxd6 {[%clk 0:01:08]} 17... Kxd6 {[%clk 0:02:18.8]}
18. Rc1 {[%clk 0:01:05.3]} 18... Nc7 {[%clk 0:02:18.6]} 19. Nd2 {[%clk
0:01:02.5]} 19... Rhe8 {[%clk 0:02:17.1]} 20. Nb3 {[%clk 0:00:57.7]} 20... Ne6
{[%clk 0:02:14.2]} 21. Kd2 {[%clk 0:00:57.9]} 21... a5 {[%clk 0:02:09.4]} 22. h4
{[%clk 0:00:45.8]} 22... h5 {[%clk 0:02:06.9]} 23. Rdc3 {[%clk 0:00:38.1]} 23...
a4 {[%clk 0:02:05.2]} 24. Na1 {[%clk 0:00:36.8]} 24... g5 {[%clk 0:02:02]} 25.
Rh1 {[%clk 0:00:35.3]} 25... Rg8 {[%clk 0:01:58.5]} 26. hxg5 {[%clk 0:00:15.5]}
26... Nxg5 {[%clk 0:01:59.4]} 27. f3 {[%clk 0:00:15.9]} 27... Ne6 {[%clk
0:01:56.9]} 28. Rh2 {[%clk 0:00:15]} 28... Rg3 {[%clk 0:01:51.6]} 29. Ke2 {[%clk
0:00:13.7]} 29... Rag8 {[%clk 0:01:52.1]} 30. Kf2 {[%clk 0:00:13.8]} 30... h4
{[%clk 0:01:52.6]} 31. Nc2 {[%clk 0:00:13.1]} 31... Ng5 {[%clk 0:01:49.6]} 32.
Ne1 {[%clk 0:00:13.2]} 32... Rh8 {[%clk 0:01:24.5]} 33. Rxh4 {[%clk 0:00:12.9]}
33... Rxh4 {[%clk 0:01:25.4]} 34. Kxg3 {[%clk 0:00:13.3]} 34... Rh1 {[%clk
0:01:26.3]} 35. Kf2 {[%clk 0:00:13.7]} 35... f5 {[%clk 0:01:23.5]} 36. Rc1
{[%clk 0:00:12.9]} 36... f4 {[%clk 0:01:17]} 37. exf4 {[%clk 0:00:11.5]} 37...
Ne6 {[%clk 0:01:17.1]} 38. Nd3 {[%clk 0:00:10.8]} 38... Rxc1 {[%clk 0:01:11.2]}
39. Nxc1 {[%clk 0:00:10.6]} 39... Nxf4 {[%clk 0:01:12.1]} 40. g3 {[%clk
0:00:10.1]} 40... Ne6 {[%clk 0:01:12]} 41. Ke3 {[%clk 0:00:10.6]} 41... c5
{[%clk 0:01:12.5]} 42. dxc5+ {[%clk 0:00:10.8]} 42... Kxc5 {[%clk 0:01:13.4]}
43. Nd3+ {[%clk 0:00:10.5]} 43... Kc4 {[%clk 0:01:13.9]} 44. f4 {[%clk
0:00:08.3]} 44... d4+ {[%clk 0:01:12]} 45. Kd2 {[%clk 0:00:06]} 45... Kb3 {[%clk
0:01:08.6]} 46. g4 {[%clk 0:00:06.2]} 46... b5 {[%clk 0:01:07.1]} 47. f5 {[%clk
0:00:06]} 47... Ng5 {[%clk 0:01:06.7]} 48. Nc5+ {[%clk 0:00:04.6]} 48... Kc4
{[%clk 0:01:06.2]} 49. Nd3 {[%clk 0:00:04.8]} 49... Kb3 {[%clk 0:01:02.6]} 50.
Nc5+ {[%clk 0:00:04]} 50... Kc4 {[%clk 0:01:02.9]} 51. Nd3 {[%clk 0:00:04.9]}
51... Kd5 {[%clk 0:00:52.7]} 52. Ke2 {[%clk 0:00:03.1]} 52... Kc4 {[%clk
0:00:51.4]} 53. Kd2 {[%clk 0:00:03]} 1/2-1/2